bitfinex/quotes_ETHUSD_20251011
["timestamp","ask_amount","ask_price","bid_price","bid_amount"]
[1760223945228,23.68579504,3752.7,3752.6,13.84043705]
[1760223945636,6.76529304,3752.7,3752.6,15.07043705]
[1760223946227,4.58474804,3752.7,3752.6,15.07043705]
[1760223946425,8.02456104,3752.7,3752.6,15.07043705]
[1760223946765,0.6346,3753.5,3752.6,15.07043705]
[1760223946766,0.001,3753.5,3752.6,16.70068076]
[1760223946973,0.001,3753.5,3752.7,0.439]
[1760223947257,0.001,3753.5,3752.6,17.93068076]
[1760223947258,7.823116,3753.4,3752.6,17.93068076]
[1760223947423,0.001,3753.5,3752.6,20.59549772]
[1760223947623,5.470274,3753.4,3752.6,20.59549772]
[1760223947824,2.66454348,3753.0,3752.6,16.30043705]
[1760223948032,0.001,3753.5,3752.6,16.30043705]
[1760223948323,2.66439305,3753.2,3752.6,17.53043705]
[1760223948649,4.8078,3752.9,3752.6,17.53043705]
[1760223948827,1.92,3753.0,3752.6,17.53043705]
[1760223949023,1.92,3752.8,3752.6,17.53043705]
[1760223949253,3.46502,3753.0,3752.6,19.40668075]
[1760223949438,6.12956795,3753.0,3752.6,19.40668075]
[1760223949638,1.92,3753.2,3752.6,20.63668075]
[1760223949862,1.92,3753.2,3752.7,0.46564748]
[1760223949863,1.92,3753.1,3752.7,0.46564748]
[1760223950157,2.6643277,3753.3,3752.6,20.63668075]
[1760223950367,3.11387,3753.1,3752.6,20.63868075]
[1760223950567,0.1328,3752.8,3752.6,20.63868075]
[1760223950864,0.1328,3752.8,3752.6,18.76243705]
[1760223951045,0.1328,3752.8,3752.6,19.99243705]
[1760223951975,5.247628,3752.7,3752.6,19.99243705]
[1760223952467,8.01187604,3752.7,3752.6,21.22243705]
[1760223952876,13.86010804,3752.7,3752.6,21.22243705]
[1760223953030,13.95960804,3752.7,3752.6,21.22243705]
[1760223953665,4.58474804,3752.7,3752.6,21.22243705]
[1760223953852,11.19757704,3752.7,3752.6,22.45243705]
[1760223954053,9.69470504,3752.7,3752.6,22.45243705]
[1760223954758,9.79420504,3752.7,3752.6,22.45243705]
[1760223955070,22.97860504,3752.7,3752.6,22.45243705]
[1760223955255,23.61220504,3752.7,3752.6,2.54960855]
[1760223955566,23.61220504,3752.7,3752.6,1e-08]
[1760223955973,35.31784804,3752.7,3752.6,1e-08]
[1760223956265,32.29422004,3752.7,3752.6,1e-08]
[1760223956875,35.31784804,3752.7,3752.6,1e-08]
[1760223957535,27.27071404,3752.7,3752.6,1e-08]
[1760223957931,33.29863211,3752.3,3752.2,1e-08]
[1760223958185,35.35143211,3752.3,3752.2,1e-08]
[1760223958338,35.45093211,3752.3,3752.2,1e-08]
[1760223959366,33.29905832,3751.7,3751.6,3.69]
[1760223959580,35.31855832,3751.7,3751.6,3.69]
[1760223959777,27.77009332,3751.7,3751.6,3.69]
[1760223960089,35.35192937,3751.6,3751.5,0.002]
[1760223960386,35.21934254,3751.3,3751.2,1e-08]
[1760223960770,32.30091854,3751.3,3751.2,1e-08]
[1760223961281,31.75060554,3751.3,3751.2,1e-08]
[1760223961879,31.75060554,3751.3,3750.4,2.462]
[1760223961880,0.6336,3750.6,3750.4,1e-08]
[1760223962057,35.21991115,3750.5,3750.4,1e-08]
[1760223962373,35.31941115,3750.5,3750.4,1e-08]
[1760223963441,2.66695114,3749.6,3749.5,1.23]
[1760223963643,30.52038614,3749.6,3749.5,1.23]
[1760223963838,26.09014514,3749.6,3749.5,1.23]
[1760223964074,32.20814514,3749.6,3749.5,1.23]
[1760223964962,27.39239914,3749.6,3749.5,1.23]
[1760223965168,32.85389914,3749.6,3749.5,2.46]
[1760223965476,33.48749914,3749.6,3749.5,2.46]
[1760223965676,34.34080626,3749.5,3749.4,1e-08]
[1760223966258,35.45472226,3749.5,3749.4,1e-08]
[1760223966581,15.39627326,3749.5,3749.4,1.23000001]
[1760223966949,15.39627326,3749.5,3749.4,1e-08]
[1760223967144,35.32192226,3749.5,3749.4,1e-08]
[1760223968074,35.32192226,3749.5,3749.4,1.23000001]
[1760223968584,34.68850826,3749.5,3749.4,1.23000001]
[1760223969189,20.31761826,3749.5,3749.4,1.23000001]
[1760223969530,20.31761826,3749.5,3749.4,2.46000001]
[1760223969531,20.95121826,3749.5,3749.4,2.46000001]
[1760223969816,20.95121826,3749.5,3749.4,1e-08]
[1760223970174,35.32192226,3749.5,3749.4,1e-08]
[1760223970603,35.32192226,3749.5,3749.4,0.00200001]
[1760223970917,35.32192226,3749.5,3749.4,1e-08]
[1760223971490,35.22090682,3749.1,3749.0,1e-08]
[1760223972016,35.32220682,3749.1,3749.0,1e-08]
[1760223972179,33.30112027,3748.8,3748.7,0.002]
[1760223972375,35.22112027,3748.8,3748.7,0.002]
[1760223972574,35.32242027,3748.8,3748.7,0.002]
[1760223973707,35.32242027,3748.8,3748.7,1.232]
[1760223973708,34.68882027,3748.8,3748.7,1.232]
[1760223975207,34.68882027,3748.8,3748.7,2.462]
[1760223976626,34.68882027,3748.8,3748.7,3.692]
[1760223977901,22.05369727,3748.8,3748.7,4.922]
[1760223978547,34.68882027,3748.8,3748.7,4.922]
[1760223979099,34.68882027,3748.8,3748.7,2.57080627]
[1760223979715,1.39152179,3748.6,3747.9,1e-08]
[1760223980036,16.36385864,3748.0,3747.9,1e-08]
[1760223980442,25.98076164,3748.0,3747.9,1e-08]
[1760223980744,25.98076164,3748.0,3747.9,1.23000001]
[1760223981308,35.22183202,3747.8,3747.7,8.61]
[1760223981506,35.32303202,3747.8,3747.7,8.61]
[1760223981946,32.24876602,3747.8,3747.7,8.61]
[1760223982145,29.39140502,3747.8,3747.7,9.84]
[1760223982357,30.02500502,3747.8,3747.7,1e-08]
[1760223982637,35.32303202,3747.8,3747.7,1e-08]
[1760223983741,35.32303202,3747.8,3747.7,1.23000001]
[1760223985052,32.5536,3747.7,3744.5,0.2183]
[1760223985232,35.22204563,3747.5,3745.1,0.447]
[1760223985434,35.22204563,3747.5,3745.2,2.67007347]
[1760223985637,35.32324563,3747.5,3745.2,2.67007347]
[1760223985817,35.32324563,3747.5,3745.1,3.11714419]
[1760223986547,35.32324563,3747.5,3747.4,2.46]
[1760223987138,18.14563763,3747.5,3747.4,2.46]
[1760223987734,34.68964563,3747.5,3747.4,3.69]
[1760223987948,35.32324563,3747.5,3747.4,3.692]
[1760223988107,35.32324563,3747.5,3745.0,0.4649]
[1760223988108,35.22218805,3747.3,3745.0,0.4649]
[1760223988307,2.5536,3747.4,3744.6,2.67050184]
[1760223988308,34.58908663,3746.6,3744.6,2.67050184]
[1760223988542,26.42748863,3746.6,3744.9,2.67029818]
[1760223988741,26.42748863,3746.6,3745.0,0.02670226]
[1760223988742,27.53568863,3746.6,3745.0,0.02670226]
[1760223989043,27.53568863,3746.6,3746.5,2.46]
[1760223989643,34.50993963,3746.6,3746.5,2.46]
[1760223989972,28.94696463,3746.6,3746.5,2.46]
[1760223990146,25.95517463,3746.6,3746.5,2.46]
[1760223990361,30.0,3746.4,3743.8,0.4649]
[1760223990649,30.0,3746.4,3742.7,5.13179789]
[1760223990650,1.92,3744.7,3744.1,2.6517]
[1760223990946,3.128697,3744.4,3744.1,2.6517]
[1760223991141,1.92,3744.3,3744.0,25.83]
[1760223991349,17.178918,3744.4,3744.0,25.83]
[1760223991552,0.2423,3744.3,3744.0,25.83]
[1760223991715,0.2423,3744.3,3744.0,27.06]
[1760223991912,1.92,3744.5,3744.0,27.06]
[1760223992217,2.019,3744.4,3744.0,27.06]
[1760223992466,1.92,3744.4,3744.0,27.06]
[1760223992637,2.67059925,3744.5,3744.0,27.06]
[1760223992638,1.92,3744.5,3744.0,27.06]
[1760223992820,1.92,3744.3,3744.0,27.06]
[1760223993146,1.92,3744.3,3744.0,28.29]
[1760223993332,0.1447,3744.7,3744.0,28.29]
[1760223993532,23.5917,3744.1,3744.0,28.29]
[1760223993755,1.92,3744.3,3744.0,28.29]
[1760223993930,1.92,3744.1,3744.0,28.29]
[1760223994129,29.28289183,3744.1,3744.0,28.29]
[1760223994351,34.68986883,3744.1,3744.0,28.29]
[1760223994554,2.1637,3744.7,3744.0,29.52]
[1760223994752,4.267214,3744.6,3744.1,1.66322215]
[1760223994974,1.92,3744.5,3744.2,0.4649]
[1760223995158,1.92,3745.1,3744.2,0.4649]
[1760223995352,5.475056,3744.8,3744.1,4.30736633]
[1760223995540,2.1623,3745.3,3744.2,2.67078893]
[1760223995738,2.1623,3745.3,3744.1,1.63651347]
[1760223995739,1.92,3744.9,3744.3,2.72498127]
[1760223995938,1.92,3744.6,3744.1,1.23]
[1760223996168,0.1447,3744.8,3744.1,1.23]
[1760223996571,2.0647,3744.8,3744.1,1.23]
[1760223996775,1.92,3744.4,3744.1,1.23]
[1760223996950,1.92,3744.9,3744.1,1.23]
[1760223997153,1.92,3745.0,3744.2,2.72498127]
[1760223997505,3.0,3744.7,3744.2,2.72498127]
[1760223997680,1.92,3744.6,3744.2,2.72498127]
[1760223997988,0.2423,3745.3,3744.2,2.72498127]
[1760223997989,1.92,3744.9,3744.2,2.72498127]
[1760223998188,1.92,3744.9,3744.1,2.46]
[1760223998389,2.67023975,3745.0,3744.1,2.46]
[1760223998390,13.188634,3744.6,3744.1,2.46]
[1760223998689,1.92,3744.7,3744.1,2.46]
[1760223998856,1.92,3744.9,3744.1,3.69]
[1760223999061,1.92,3744.7,3744.1,3.69]
[1760223999379,13.915644,3744.8,3744.1,3.69]
[1760223999552,1.92,3744.5,3744.1,3.69]
[1760223999748,1.92,3744.7,3744.1,3.69]
[1760223999975,10.843759,3744.4,3744.1,3.69]
[1760224000173,0.1447,3744.8,3744.1,3.69]
[1760224000349,5.349682,3744.2,3744.1,4.92]
[1760224000551,1.92,3744.2,3744.1,4.92]
[1760224000790,1.92,3744.2,3744.1,10.3158501]
[1760224000971,1.92,3744.2,3744.1,11.0074501]
[1760224001687,1.92,3744.2,3744.1,12.2374501]
[1760224002596,0.1328,3744.6,3744.5,2.67058352]
[1760224002890,0.1328,3744.6,3744.5,3.40254187]
[1760224003060,0.1328,3744.6,3744.5,1.49705835]
[1760224003257,0.1328,3744.6,3744.5,1.23]
[1760224004584,0.1328,3744.6,3744.5,2.46]
[1760224005304,9.37937,3744.6,3744.5,2.46]
[1760224005471,8.839831,3744.6,3744.5,2.46]
[1760224005677,6.372831,3744.6,3744.5,2.46]
[1760224005973,6.372831,3744.6,3744.5,3.69]
[1760224007193,6.372831,3744.6,3744.5,4.92]
[1760224007391,28.557461,3744.6,3744.5,4.92]
[1760224007591,20.73957,3744.6,3744.5,4.92]
[1760224007775,18.160131,3744.6,3744.5,4.92]
[1760224007983,12.021761,3744.6,3744.5,4.92]
[1760224008180,11.921861,3744.6,3744.5,4.92]
[1760224008382,19.911809,3744.6,3744.5,4.92]
[1760224008713,21.3849152,3744.6,3744.5,6.15]
[1760224008912,12.340471,3744.6,3744.5,6.15]
[1760224009476,4.6904122,3744.6,3744.5,6.15]
[1760224009685,14.083345,3744.6,3744.5,6.15]
[1760224009900,6.211265,3744.6,3744.5,7.38]
[1760224010204,5.875285,3744.6,3744.5,7.38]
[1760224010405,4.074545,3744.6,3744.5,7.38]
[1760224010612,1.92,3744.6,3744.5,8.118]
[1760224010906,0.1438,3745.7,3744.5,8.5762]
[1760224011075,8.159187,3745.6,3744.6,0.02670512]
[1760224011277,4.307067,3745.9,3745.0,2.67016322]
[1760224011478,16.316539,3745.8,3744.7,0.4582]
[1760224011804,4.529806,3746.2,3745.4,2.66992913]
[1760224012007,2.41029,3746.2,3745.5,0.0266987]
[1760224012194,5.431682,3746.4,3745.5,0.4848987]
[1760224012540,3.0,3746.4,3745.5,0.4848987]
[1760224012678,3.0,3746.4,3746.3,2.66930037]
[1760224012882,0.001,3746.5,3746.4,2.66922912]
[1760224013097,0.001,3746.5,3746.3,0.26693004]
[1760224013481,0.001,3746.5,3746.3,2.93621079]
[1760224013812,0.001,3746.5,3745.8,0.4748]
[1760224014110,0.001,3746.5,3746.1,2.66942631]
[1760224014311,1.92,3746.3,3746.2,0.02669371]
[1760224014713,0.001,3746.5,3746.2,0.02669371]
[1760224014714,2.410915,3746.4,3746.2,0.02669371]
[1760224014890,1.92,3746.1,3745.8,1.23]
[1760224015097,0.099,3746.3,3745.8,1.23]
[1760224015419,3.0,3746.0,3745.8,1.23]
[1760224015618,0.001,3746.5,3745.8,2.46]
[1760224015619,6.810225,3745.9,3745.8,2.46]
[1760224015911,1.92,3746.3,3745.8,2.46]
[1760224016115,1.92,3745.9,3745.8,2.46]
[1760224016321,29.09134,3745.9,3745.8,2.46]
[1760224016526,31.76092541,3745.9,3745.8,2.46]
[1760224016899,32.10198221,3745.9,3745.8,3.69]
[1760224017100,32.73558221,3745.9,3745.8,3.69]
[1760224017435,35.80754221,3745.9,3745.8,2.88794246]
[1760224017636,18.52655141,3745.9,3745.8,2.88794246]
[1760224017822,17.89295141,3745.9,3745.8,2.88794246]
[1760224018205,34.83288541,3745.9,3745.8,2.88794246]
[1760224018407,33.48077141,3745.9,3745.8,4.11794246]
[1760224018632,34.79005326,3745.9,3745.8,4.11794246]
[1760224019313,36.14216726,3745.9,3745.8,4.11794246]
[1760224019714,36.14216726,3745.9,3745.8,5.34794246]
[1760224021203,36.14216726,3745.9,3745.8,1.47441814]
[1760224021425,0.6336,3745.5,3744.5,8.058054]
[1760224021734,20.6135182,3744.6,3744.5,8.058054]
[1760224021923,13.178689,3744.6,3744.5,8.058054]
[1760224022306,13.35819,3744.6,3744.5,8.058054]
[1760224022734,16.0287022,3744.6,3744.5,9.288054]
[1760224023338,17.3296602,3744.6,3744.5,9.288054]
[1760224024050,17.3296602,3744.6,3744.5,10.518054]
[1760224024342,17.6798982,3744.6,3744.5,10.518054]
[1760224024545,5.676487,3744.6,3744.5,10.518054]
[1760224024747,8.3469992,3744.6,3744.5,10.518054]
[1760224024906,5.676487,3744.6,3744.5,10.518054]
[1760224025309,4.525014,3744.6,3744.5,10.518054]
[1760224025509,4.525014,3744.6,3744.5,11.748054]
[1760224025839,4.624514,3744.6,3744.5,11.748054]
[1760224026021,7.2950262,3744.6,3744.5,11.748054]
[1760224026415,18.8371042,3744.6,3744.5,11.748054]
[1760224026613,15.6788892,3744.6,3744.5,11.748054]
[1760224026809,6.935412,3744.6,3744.5,12.978054]
[1760224027034,9.6059242,3744.6,3744.5,12.978054]
[1760224027234,6.835912,3744.6,3744.5,12.978054]
[1760224027434,8.982416,3744.6,3744.5,12.978054]
[1760224027755,6.405271,3744.6,3744.5,12.978054]
[1760224028210,6.405271,3744.6,3744.5,14.208054]
[1760224028760,18.1733562,3744.6,3744.5,14.208054]
[1760224029414,18.1733562,3744.6,3744.5,15.438054]
[1760224029623,33.9228342,3744.6,3744.5,15.438054]
[1760224029946,32.6758962,3744.6,3744.5,15.438054]
[1760224030319,7.44636,3744.6,3744.5,15.438054]
[1760224030520,12.57322,3744.6,3744.5,15.438054]
[1760224030721,4.51722,3744.6,3744.5,15.438054]
[1760224031039,14.55025809,3745.9,3744.5,17.74442052]
[1760224031040,11.370275,3745.8,3744.5,17.74442052]
[1760224031244,4.453524,3745.8,3744.5,20.41498797]
[1760224031442,1.92,3745.5,3744.5,17.74442052]
[1760224031612,9.266399,3745.2,3744.5,17.74442052]
[1760224031812,6.839536,3745.3,3744.6,1.77444205]
[1760224032141,6.839536,3745.3,3744.5,16.668054]
[1760224032142,1.92,3744.8,3744.5,16.668054]
[1760224032342,8.440256,3744.6,3744.5,17.898054]
[1760224032540,3.749825,3744.6,3744.5,17.898054]
[1760224032729,8.2075372,3744.6,3744.5,17.898054]
[1760224033045,24.0521752,3744.6,3744.5,17.898054]
[1760224033439,23.6056222,3744.6,3744.5,17.898054]
[1760224033633,23.6056222,3744.6,3744.5,19.128054]
[1760224034145,29.6183432,3744.6,3744.5,19.128054]
[1760224035111,29.6183862,3744.6,3744.5,19.128054]
[1760224035313,20.9080662,3744.6,3744.5,20.358054]
[1760224035651,18.0934032,3744.6,3744.5,20.358054]
[1760224035854,16.9467422,3744.6,3744.5,20.358054]
[1760224036221,3.3043975,3744.2,3744.1,6.152]
[1760224036447,35.3228975,3744.2,3744.1,6.151]
[1760224037967,35.3228975,3744.2,3744.1,7.381]
[1760224038271,5.22446883,3744.1,3744.0,19.92192282]
[1760224038566,5.22446883,3744.1,3743.8,0.002]
[1760224038567,35.22461151,3743.9,3743.8,0.002]
[1760224038739,49.7747696,3743.9,3743.8,0.002]
[1760224038942,49.8737696,3743.9,3743.8,0.002]
[1760224039678,49.8737696,3743.9,3743.8,1.232]
[1760224041267,50.54906626,3743.9,3743.8,1.232]
[1760224041463,50.54906626,3743.9,3743.8,2.462]
[1760224042135,50.54906626,3743.9,3743.0,1.232]
[1760224042136,0.6336,3743.7,3743.0,1.232]
[1760224042339,35.22489691,3743.5,3743.0,1.232]
[1760224042760,35.22489691,3743.5,3743.4,1.232]
[1760224042761,35.99919357,3743.5,3743.4,1.232]
[1760224044185,35.99919357,3743.5,3743.4,2.462]
[1760224045238,35.32389691,3743.5,3743.4,2.462]
[1760224045455,34.69029691,3743.5,3743.4,2.462]
[1760224045664,35.32389691,3743.5,3743.4,3.692]
[1760224045942,22.032447,3743.5,3743.4,3.692]
[1760224046142,4.457792,3743.5,3743.4,3.692]
[1760224046364,6.723549,3743.5,3743.4,3.692]
[1760224046543,8.643549,3743.5,3743.4,3.692]
[1760224046742,6.723549,3743.5,3743.4,3.692]
[1760224046979,4.663337,3743.8,3743.4,4.922]
[1760224047280,1.92,3743.5,3743.4,4.922]
[1760224047458,6.386197,3743.5,3743.4,4.922]
[1760224047659,1.92,3743.6,3743.4,4.922]
[1760224047855,0.099,3743.8,3743.4,4.922]
[1760224047856,2.548869,3743.5,3743.4,4.922]
[1760224048054,5.427646,3743.8,3743.4,4.922]
[1760224048255,1.92,3743.7,3743.4,6.152]
[1760224048459,6.125564,3743.5,3743.4,6.152]
[1760224048686,4.681279,3743.5,3743.4,6.152]
[1760224048889,2.761279,3743.5,3743.4,7.03435035]
[1760224049045,0.099,3744.3,3743.4,7.03435035]
[1760224049046,2.211623,3744.5,3743.4,7.49655035]
[1760224049257,0.1328,3743.5,3743.4,9.70571675]
[1760224049452,0.1328,3743.5,3743.4,10.93571675]
[1760224050150,0.1328,3744.2,3743.6,2.67116728]
[1760224050374,0.1328,3744.2,3744.1,2.67086883]
[1760224050585,0.1328,3744.2,3744.1,3.15977751]
[1760224050885,0.001,3744.6,3744.5,2.67058352]
[1760224051083,0.001,3745.0,3744.9,3.30389827]
[1760224051387,23.760514,3744.9,3744.3,0.4622]
[1760224051564,23.760514,3744.9,3744.1,1.9061]
[1760224051565,10.040608,3744.9,3744.1,1.9061]
[1760224051770,0.001,3745.0,3744.5,2.67054684]
[1760224052189,0.001,3745.0,3744.4,2.67064887]
[1760224052394,0.001,3745.0,3744.3,0.4622]
[1760224052559,0.001,3745.0,3744.5,1.23]
[1760224052560,1.92,3744.8,3744.5,1.23]
[1760224052756,5.133447,3744.9,3744.5,1.23]
[1760224052956,0.001,3745.0,3744.5,1.23]
[1760224053161,0.001,3745.0,3744.7,2.67042677]
[1760224053392,0.001,3745.0,3744.9,2.67029827]
[1760224053552,0.001,3745.0,3744.9,2.98621847]
[1760224054363,0.001,3745.0,3744.9,2.67029827]
[1760224054673,0.001,3745.0,3744.9,3.79280125]
[1760224054880,0.001,3745.4,3745.3,3.30361308]
[1760224055080,0.001,3746.5,3746.4,2.66922912]
[1760224055309,0.001,3746.5,3746.4,2.69592141]
[1760224055509,0.001,3746.5,3746.4,3.53977191]
[1760224055798,0.001,3746.5,3746.4,2.66922912]
[1760224055972,0.001,3746.5,3746.4,3.13142912]
[1760224056899,0.001,3746.5,3746.4,4.36142912]
[1760224057266,10.156626,3746.5,3746.4,1.23]
[1760224057518,6.64024,3746.5,3746.4,1.23]
[1760224057680,1.921,3746.5,3746.4,1.23]
[1760224057884,1.921,3746.5,3746.4,3.89922912]
[1760224058178,12.213248,3746.5,3746.4,1.23]
[1760224058384,12.213248,3746.5,3746.4,2.46]
[1760224058970,1.921,3746.5,3746.4,2.46]
[1760224059212,1.921,3746.5,3746.4,5.83742912]
[1760224059811,1.921,3746.5,3746.4,7.06742912]
[1760224060016,0.001,3746.5,3746.4,7.06742912]
[1760224061202,0.001,3746.5,3746.4,8.29742912]
[1760224061416,0.001,3746.5,3746.4,9.06382912]
[1760224062598,0.001,3746.5,3746.4,10.29382912]
[1760224063919,0.001,3746.9,3746.8,3.30254416]
[1760224064290,0.001,3746.9,3746.8,3.90554416]
[1760224065618,0.001,3746.9,3746.8,5.13554416]
[1760224066287,0.001,3746.9,3746.8,4.50194416]
[1760224066621,0.001,3746.9,3746.8,1.23]
[1760224066820,0.001,3746.9,3746.8,5.12894416]
[1760224067330,0.001,3746.9,3746.8,2.46]
[1760224067492,1.921,3746.9,3746.8,2.46]
[1760224068230,1.921,3746.9,3746.8,3.69]
[1760224068525,1.921,3746.9,3746.8,6.82914416]
[1760224068821,0.001,3746.9,3746.8,7.78162901]
[1760224069035,0.001,3746.9,3746.8,8.41522901]
[1760224069732,0.001,3746.9,3746.8,9.64522901]
[1760224070940,0.001,3746.9,3746.8,8.05914416]
[1760224071140,0.001,3746.9,3746.8,9.28914416]
[1760224071323,0.001,3746.9,3746.8,6.15]
[1760224071504,1.921,3746.9,3746.8,6.15]
[1760224072542,1.921,3746.9,3746.8,10.04894416]
[1760224072697,1.921,3746.9,3746.8,11.52403858]
[1760224072900,0.001,3746.9,3746.8,11.52403858]
[1760224073321,0.001,3746.9,3746.8,11.05383858]
[1760224073496,0.001,3746.9,3746.8,7.8429]
[1760224073708,0.001,3746.9,3746.8,10.51184416]
[1760224073909,0.001,3746.9,3746.8,12.37544416]
[1760224075234,0.001,3746.9,3746.8,13.60544416]
[1760224075443,0.001,3746.9,3746.8,15.23288843]
[1760224076707,0.001,3746.9,3746.8,16.46288843]
[1760224077642,0.001,3746.9,3746.8,15.96208843]
[1760224078046,0.001,3746.9,3746.8,15.56464416]
[1760224078218,0.001,3746.9,3746.8,15.43184416]
[1760224079342,0.001,3746.9,3746.8,16.66184416]
[1760224079910,0.001,3746.9,3746.8,17.42824416]
[1760224080320,0.001,3746.9,3746.8,16.79464416]
[1760224080511,0.001,3746.9,3746.8,18.741217]
[1760224080714,0.001,3746.9,3746.8,19.971217]
[1760224080908,2.18622,3746.9,3746.8,14.76]
[1760224081244,1.921,3746.9,3746.8,14.76]
[1760224081646,2.0538,3746.9,3746.8,17.89184416]
[1760224082048,1.921,3746.9,3746.8,19.12184416]
[1760224082450,0.001,3746.9,3746.8,19.75544416]
[1760224082747,0.001,3747.3,3747.2,2.66865926]
[1760224083246,0.001,3747.3,3747.2,3.13155926]
[1760224083432,0.001,3747.3,3747.2,4.36155926]
[1760224084434,0.001,3747.3,3747.2,5.02184585]
[1760224084634,0.001,3747.3,3747.2,4.99515926]
[1760224084843,0.001,3747.3,3747.2,6.35795044]
[1760224085054,0.001,3747.3,3747.2,5.12865926]
[1760224085753,1.921,3747.3,3747.2,5.12865926]
[1760224085954,1.921,3747.3,3747.2,5.59155926]
[1760224086152,1.921,3747.3,3747.2,6.35865926]
[1760224087374,1.921,3747.3,3747.2,3.69]
[1760224087375,31.921,3747.3,3747.2,3.69]
[1760224087525,10.897745,3747.3,3747.2,4.92]
[1760224087725,7.292168,3747.3,3747.2,4.92]
[1760224088033,1.921,3747.3,3747.2,4.92]
[1760224088664,1.921,3747.3,3747.2,8.05155926]
[1760224088969,1.921,3747.3,3747.2,9.28155926]
[1760224089336,1.921,3747.3,3747.2,6.15]
[1760224089650,1.921,3747.3,3747.2,8.81865926]
[1760224089958,1.921,3747.3,3747.2,9.28155926]
[1760224090350,1.921,3747.3,3747.2,8.81865926]
[1760224090552,1.921,3747.3,3747.2,10.04865926]
[1760224091366,0.001,3747.3,3747.2,11.78330251]
[1760224091878,0.001,3747.7,3747.6,3.30197442]
[1760224092246,0.001,3747.7,3747.6,3.79155816]
[1760224092567,0.001,3747.7,3747.6,3.89767442]
[1760224093064,0.001,3747.7,3747.6,3.92435816]
[1760224093270,0.001,3747.7,3747.6,4.55695704]
[1760224093469,0.001,3747.7,3747.6,5.68084078]
[1760224093672,0.001,3747.7,3747.6,5.78695704]
[1760224093971,0.001,3747.7,3747.6,5.65415704]
[1760224094139,0.001,3747.7,3747.6,4.36127442]
[1760224094658,0.001,3747.7,3747.6,1.23]
[1760224094862,0.001,3747.7,3747.6,5.59127442]
[1760224095673,0.001,3747.7,3747.6,5.12837442]
[1760224096243,0.001,3747.7,3747.6,6.82127442]
[1760224096446,0.001,3747.7,3747.6,7.77025351]
[1760224096849,0.001,3747.7,3747.6,8.40385351]
[1760224097671,0.001,3747.7,3747.6,9.63385351]
[1760224099083,0.001,3747.7,3747.6,10.86385351]
[1760224099290,0.001,3747.7,3747.6,10.23025351]
[1760224099591,0.001,3747.7,3747.6,9.28127442]
[1760224100674,0.001,3747.7,3747.6,7.38]
[1760224101259,0.001,3747.7,3747.6,10.04837442]
[1760224101678,0.001,3747.7,3747.6,7.38]
[1760224102197,0.001,3747.7,3747.6,10.04837442]
[1760224102385,0.001,3747.7,3747.6,11.27837442]
[1760224102716,19.422447,3747.7,3747.6,8.61]
[1760224102987,16.532537,3747.7,3747.6,8.61]
[1760224103187,19.20084022,3747.7,3747.6,8.61]
[1760224103491,19.20084022,3747.7,3747.6,5.36483171]
[1760224103492,20.17549702,3747.7,3747.6,5.36483171]
[1760224103701,35.66506002,3747.7,3747.6,6.59483171]
[1760224103860,32.3631568,3747.7,3747.6,6.59483171]
[1760224104181,19.460755,3747.7,3747.6,6.59483171]
[1760224104690,34.69040322,3747.7,3747.6,6.59483171]
[1760224104890,8.539103,3747.7,3747.6,7.82483171]
[1760224105206,1.921,3747.7,3747.6,7.82483171]
[1760224105495,2.80212,3747.7,3747.6,7.82483171]
[1760224106365,2.80212,3747.7,3747.6,9.05483171]
[1760224106589,0.001,3747.7,3747.6,12.15880613]
[1760224106789,0.001,3747.7,3747.6,9.05483171]
[1760224107097,0.001,3747.7,3747.6,11.72320613]
[1760224107514,0.001,3747.7,3747.6,9.05483171]
[1760224107698,8.340842,3747.7,3747.6,10.28483171]
[1760224108008,1.921,3747.7,3747.6,10.28483171]
[1760224108190,7.39598,3747.7,3747.6,10.28483171]
[1760224108714,15.452646,3747.7,3747.6,10.28483171]
[1760224108898,8.769351,3747.7,3747.6,10.28483171]
[1760224109078,8.769351,3747.7,3747.6,11.51483171]
[1760224109414,8.769351,3747.7,3747.6,14.18320613]
[1760224109415,1.921,3747.7,3747.6,14.18320613]
[1760224109614,0.001,3747.7,3747.6,16.93757651]
[1760224109816,0.001,3747.7,3747.6,17.07037651]
[1760224110017,0.001,3748.1,3747.6,17.07037651]
[1760224110018,0.001,3748.1,3748.0,3.30168964]
[1760224110613,0.001,3748.1,3748.0,5.10008964]
[1760224110780,0.001,3748.1,3748.0,5.87691714]
[1760224111779,0.001,3748.1,3748.0,7.10691714]
[1760224112681,0.001,3748.1,3748.0,6.47331714]
[1760224112882,0.001,3748.1,3748.0,7.10691714]
[1760224113513,0.001,3748.1,3748.0,8.33691714]
[1760224114677,0.001,3748.1,3748.0,9.56691714]
[1760224114931,0.001,3748.6,3748.5,3.30133376]
[1760224115109,0.001,3748.6,3748.5,3.65814447]
[1760224115410,0.001,3748.6,3748.5,4.19986714]
[1760224115714,0.001,3748.6,3748.5,4.22654447]
[1760224115921,0.001,3748.6,3748.5,4.19986714]
[1760224116213,0.001,3748.6,3748.5,5.45654447]
[1760224116414,0.001,3748.6,3748.5,5.42986714]
[1760224117623,0.001,3748.6,3748.5,6.65986714]
[1760224119180,0.001,3748.6,3748.5,7.88986714]
[1760224119381,0.001,3748.6,3748.5,7.75706714]
[1760224119588,0.001,3748.6,3748.5,7.88986714]
[1760224120619,0.001,3748.6,3748.5,8.48626714]